[Event "Charlotte Summer IM B 2022"]
[Site "Charlotte"]
[Date "2022.07.27"]
[Round "5.2"]
[White "Atanasov, Anthony"]
[Black "Mishra, Prateek"]
[Result "1/2-1/2"]
[ECO "D85"]
[WhiteElo "2172"]
[BlackElo "2204"]
[Annotator "TA"]
[PlyCount "239"]
[EventDate "2022.07.24"]
[EventType "tourn"]
[EventCountry "USA"]
[SourceTitle "playchess.com"]
[Source "ChessBase"]
[SourceQuality "1"]
[TimeControl "5400+30"]

1. d4 {[%emt 0:00:01]} Nf6 {[%emt 0:00:05]} 2. c4 {[%emt 0:00:18]} g6 {[%emt 0:00:08]} 3. Nc3 {[%emt 0:00:13]} d5 {[%emt 0:00:06]} 4. cxd5 {[%emt 0:00:20]} Nxd5 {[%emt 0:00:06]} 5. e4 {[%emt 0:00:16]} Nxc3 {[%emt 1:32:35]} 6. bxc3 {[%emt 0:00:03]} Bg7 {[%emt 0:00:00]} 7. Qa4+ {[%emt 0:00:23]} Nd7 {[%emt 0:00:00]} 8. Nf3 {[%emt 0:00:35]} O-O {[%emt 0:00:00]} 9. Qa3 {[%emt 0:02:05]} c5 {[%emt 0:00:00]} 10. Be2 {[%emt 0:00:06]} Qc7 {[%emt 0:00:00]} 11. O-O {[%emt 0:04:22]} b6 {[%emt 0:00:00]} 12. Bg5 {[%emt 1:27:48]} Bb7 {[%emt 0:00:00]} 13. Bd3 {[%emt 0:00:00]} (13. Bxe7 Rfe8 14. Bh4 Rxe4) 13... h6 {[%emt 0:00:00]} 14. Bd2 {[%emt 0:00:00]} Rad8 {[%emt 0:00:00]} 15. Rad1 {[%emt 0:00:00]} (15. Qxa7 $2 Ra8 16. Qxa8 (16. Bf4 $2 e5 $19) 16... Rxa8 $19) 15... g5 {[%emt 0:00:00]} 16. Bb1 {[%emt 0:00:00]} (16. Qxa7 $2 Ra8 17. Qxa8 Rxa8 $19) 16... b5 {[%emt 0:00:00]} 17. Qb3 {[%emt 0:00:00]} a6 {[%emt 0:00:00]} 18. a4 {[%emt 0:00:00]} bxa4 {[%emt 0:00:00]} 19. Qa2 {[%emt 0:00:00]} (19. Qxa4 $14 {deserves consideration.} Nb6 20. Qa2) 19... e6 $11 {[%emt 0:00:00]} 20. h3 {[%emt 0:00:00]} Nf6 {[%emt 0:00:00]} (20... Nb6 $11) 21. Rfe1 $14 {[%emt 0:00:00]} (21. e5 Ne4 $15) 21... Nh5 {[%emt 0:00:00]} 22. Qxa4 {[%emt 0:00:00]} Nf4 {[%emt 0:00:00]} 23. Qc4 {[%emt 0:00:00]} Rc8 {[%emt 0:00:17]} (23... Ng6 $14) 24. Qb3 {[%emt 0:00:00]} (24. h4 $1 $16) 24... Ba8 {[%emt 0:01:47]} (24... Rb8 $11) 25. Qa3 {[%emt 0:00:00]} a5 {[%emt 0:01:47]} 26. Bxf4 {[%emt 0:00:00]} gxf4 {[%emt 0:00:55]} 27. d5 {[%emt 0:00:00]} e5 {[%emt 0:02:26]} (27... c4 $16) 28. Nh4 $18 {[%emt 0:00:00]} (28. d6 $6 Qd8) 28... Bb7 {[%emt 0:00:04]} 29. Nf5 {[%emt 0:00:17]} Kh7 {[%emt 0:01:30]} 30. d6 {[%emt 0:01:26]} Qd7 {[%emt 0:01:15]} 31. Qxa5 {[%emt 0:00:43]} Ra8 {[%emt 0:00:22]} 32. Qxc5 {[%emt 0:00:43]} Rfc8 {[%emt 0:00:19]} 33. Qb4 {[%emt 0:00:15]} Ra4 {[%emt 0:00:20]} 34. Qb2 {[%emt 0:02:10]} Rac4 $2 {[%emt 0:00:19]} (34... Rca8 35. Qe2 Bf8) 35. Bd3 $18 {[%emt 0:01:34]} R4c5 {[%emt 0:00:42]} 36. Rd2 {[%emt 0:01:32]} Bf6 {[%emt 0:00:20]} 37. c4 {[%emt 0:00:33]} Ba6 {[%emt 0:00:36]} 38. Rc1 {[%emt 0:00:58]} f3 {[%emt 0:00:28]} 39. Ra1 {[%emt 0:00:49]} ({Don't play} 39. gxf3 Bg5 40. Kh1 Qe6) 39... Bxc4 {[%emt 0:01:43]} 40. Bxc4 {[%emt 0:00:01]} ({Weaker is} 40. gxf3 Be6 $14) 40... Rxc4 {[%emt 0:00:13]} 41. gxf3 {[%emt 0:00:11]} Rg8+ {[%emt 0:00:41]} 42. Kh1 {[%emt 0:00:10]} Rg5 {[%emt 0:00:24]} 43. Rc2 {[%emt 0:00:24]} Rd4 {[%emt 0:00:57]} (43... Qe6 $142 44. Rxc4 Qxc4) 44. Rc7 $18 {[%emt 0:00:23]} Qe6 {[%emt 0:00:10]} 45. Kh2 {[%emt 0:02:42]} Rh5 {[%emt 0:00:24]} (45... Bd8 $18 46. Rb7 Rxf5 47. exf5 Qxf5) 46. Qa2 {[%emt 0:00:22]} (46. Qb7 $142 Rxf5 47. exf5 Qxf5 48. Rg1 Qf4+ 49. Kh1 Qg5 50. Rxg5 hxg5 51. Qb3) 46... Rxd6 {[%emt 0:00:52]} 47. Rxf7+ {[%emt 0:00:44]} Kg6 {[%emt 0:00:23]} 48. Rg1+ {[%emt 0:00:40]} (48. Rxf6+ $142 Kxf6 49. Qa8 Rxf5 50. Qf8+ Kg5 51. exf5) 48... Rg5 $18 {[%emt 0:00:09]} 49. Rxg5+ {[%emt 0:00:33]} hxg5 {[%emt 0:00:11] [#]} 50. Qxe6 {[%emt 0:00:20]} (50. Qa7 $142 $1 {Rg7+ would kill now.} Qxf7 51. Qxf7+ Kxf7 52. Nxd6+ Kg6 53. Kg3) 50... Rxe6 $18 {[%emt 0:00:10]} 51. Rd7 {[%emt 0:00:22]} Ra6 {[%emt 0:00:25]} 52. Rd6 {[%emt 0:00:28]} Rxd6 $2 {[%emt 0:00:52]} (52... Ra8 53. Kg3 Kf7 54. Nh6+ Kg7) 53. Nxd6 $18 {[%emt 0:00:02]} Be7 {[%emt 0:00:08]} 54. Nc4 {[%emt 0:00:27]} Bf6 {[%emt 0:00:17]} 55. Kg2 {[%emt 0:00:39]} Kh5 {[%emt 0:00:38]} 56. Ne3 {[%emt 0:00:30]} Bh8 {[%emt 0:00:38]} (56... Bd8 {was worth a try.} 57. Nf5 Bb6) 57. Nf5 $18 {[%emt 0:00:35]} Bf6 {[%emt 0:00:37]} 58. Kf1 {[%emt 0:00:12]} Bd8 {[%emt 0:01:03]} 59. Ne3 {[%emt 0:01:11]} (59. Ng3+ $142 Kh4 60. Kg2) 59... Kh4 {[%emt 0:01:05]} (59... Ba5 {was necessary.} 60. Kg2 Bb4) 60. Kg2 $18 {[%emt 0:00:22]} Bf6 {[%emt 0:00:24]} 61. Nf5+ {[%emt 0:00:19]} Kh5 {[%emt 0:00:04]} 62. Kg1 {[%emt 0:00:08]} Bd8 {[%emt 0:00:06]} 63. Kf1 {[%emt 0:00:04]} Bb6 {[%emt 0:00:27]} 64. Ke2 {[%emt 0:00:33]} Bc5 {[%emt 0:00:16]} 65. Kd3 {[%emt 0:02:24]} (65. Ke1 $1 $18 {and White stays clearly on top.}) 65... Bxf2 $16 {[%emt 0:00:15]} 66. Kc4 {[%emt 0:00:04]} Be1 {[%emt 0:00:16]} 67. Kd5 {[%emt 0:00:09]} Bc3 {[%emt 0:00:28]} 68. Ke6 {[%emt 0:00:04]} (68. Kc6 $16) 68... Bd4 {[%emt 0:00:28]} (68... Ba1 $1 $11) 69. Kf7 {[%emt 0:00:14]} (69. Nxd4 exd4 70. Kf6 d3 71. Kf5 d2 72. Ke5 d1=Q 73. f4 Qa1+ 74. Kf5 Qf1 75. e5 gxf4 76. e6 f3 77. Ke5 Qe2+ 78. Kd5 f2 79. Kd6 f1=Q 80. Kd7 Qxh3 81. Kd8 Qhxe6 82. Kc7 Qb5 83. Kd8 Qed7#) 69... Bc3 {[%emt 0:00:28]} 70. Kf6 {[%emt 0:00:06]} Bb2 $2 {[%emt 0:00:27][%mdl 8192]} (70... Ba1 $16) 71. Kf7 $2 {[%emt 0:01:03]} (71. Nd6 $18 {is more deadly.} Kh4 72. Nc4) 71... Bc3 $16 {[%emt 0:00:06]} 72. Ke7 {[%emt 0:00:04]} Bb2 {[%emt 0:00:29]} 73. Kd7 {[%emt 0:00:21]} Bc3 {[%emt 0:00:12]} 74. Kc7 {[%emt 0:00:05]} Bb2 {[%emt 0:00:31]} 75. Kc6 {[%emt 0:00:07]} Ba1 {[%emt 0:00:33]} 76. Kb7 {[%emt 0:00:06]} Bb2 {[%emt 0:00:13]} 77. Kb6 {[%emt 0:00:05]} Ba1 {[%emt 0:00:48]} 78. Kb5 {[%emt 0:00:19]} Bc3 {[%emt 0:00:22]} 79. Kc4 {[%emt 0:00:24]} ({Better is} 79. Kc5 $16) 79... Bd2 {[%emt 0:01:40]} (79... Be1 $11) 80. Kd5 {[%emt 0:00:15]} Bc3 $1 {[%emt 0:00:27]} 81. Ke6 {[%emt 0:00:54]} (81. Kc5 $1 $16) 81... Bb2 {[%emt 0:00:22]} (81... Bd4 $11) 82. Kf6 $16 {[%emt 0:00:22]} Bc3 {[%emt 0:00:06]} 83. Kg7 {[%emt 0:01:54]} (83. Kf7 $1 $16) 83... Bb2 {[%emt 0:00:11] [#]} (83... Bb4 $11 {keeps the balance.}) 84. Kf8 $1 $16 {[%emt 0:00:06]} Bc3 {[%emt 0:00:12]} 85. Kf7 {[%emt 0:00:36]} Bb2 {[%emt 0:00:06]} 86. Ke7 {[%emt 0:00:05]} Bc3 {[%emt 0:00:04]} 87. Kd6 {[%emt 0:02:13]} ({White should play} 87. Kd7 $16) 87... Bb2 {[%emt 0:00:11]} (87... Bd4 $11) 88. Kd5 {[%emt 0:00:03]} Bc3 $1 {[%emt 0:00:18] [#]} 89. Ke6 {[%emt 0:00:32]} (89. Kc5 $1 $16) 89... Bb2 $11 {[%emt 0:00:33]} 90. Ne3 {[%emt 0:00:26]} Kh4 {[%emt 0:01:07]} 91. Nc4 {[%emt 0:00:32]} Bc3 {[%emt 0:00:25]} 92. Nxe5 {[%emt 0:00:57]} Kxh3 {[%emt 0:00:09]} 93. Nf7 {[%emt 0:01:28]} Kg3 {[%emt 0:05:49]} 94. Kd5 {[%emt 0:00:31]} g4 {[%emt 0:00:00]} 95. fxg4 {[%emt 0:00:10]} Kxg4 {[%emt 0:00:00]} 96. Ne5+ {[%emt 0:00:15]} Kg5 {[%emt 0:00:00]} 97. Nc4 {[%emt 0:00:22]} Kf6 {[%emt 0:00:00]} 98. Kd6 {[%emt 0:00:10]} Bb4+ {[%emt 0:00:00]} 99. Kd7 {[%emt 0:00:05]} Bc3 {[%emt 0:00:00]} 100. Kd6 {[%emt 0:00:05]} Bb4+ {[%emt 0:00:00]} 101. Kd5 {[%emt 0:00:07]} Bc3 {[%emt 0:00:00]} 102. Nd6 {[%emt 0:00:05]} Ke7 {[%emt 0:04:30]} 103. Nf5+ {[%emt 0:00:05]} Kd7 {[%emt 0:00:30]} 104. Ne3 {[%emt 0:00:04]} Ke7 {[%emt 0:00:00]} 105. Nc4 {[%emt 0:00:05]} Kd7 {[%emt 0:00:00]} 106. Na3 {[%emt 0:00:06]} Ke7 {[%emt 0:00:00]} 107. Nb5 {[%emt 0:00:10]} Bb2 {[%emt 0:00:00]} 108. Na7 {[%emt 0:00:03]} Ba1 {[%emt 0:00:00]} 109. Nc8+ {[%emt 0:00:03]} Kd7 {[%emt 0:00:00]} 110. Nd6 {[%emt 0:00:03]} Ke7 {[%emt 0:00:00]} 111. Nf5+ {[%emt 0:00:02]} Kd7 {[%emt 0:04:00]} 112. Nd4 {[%emt 0:00:04]} Bxd4 {[%emt 0:00:00]} 113. Kxd4 {[%emt 0:00:03]} Ke6 {[%emt 0:01:00]} 114. e5 {[%emt 0:00:02]} Ke7 {[%emt 0:00:00]} 115. Kd5 {[%emt 0:00:03]} Kd7 {[%emt 0:00:00]} 116. e6+ {[%emt 0:00:03]} Ke7 {[%emt 0:00:00]} 117. Ke5 {[%emt 0:00:01]} Ke8 {[%emt 0:02:00]} 118. Kd6 {[%emt 0:00:08]} Kd8 {[%emt 0:00:00]} 119. e7+ {[%emt 0:00:03]} Ke8 {[%emt 0:00:00]} 120. Ke6 {[%emt 0:00:02]} 1/2-1/2

[Event "Charlotte Summer IM B 2022"]
[Site "Charlotte"]
[Date "2022.07.26"]
[Round "5.3"]
[White "Adu, Oladapo"]
[Black "Homa, Seth"]
[Result "1/2-1/2"]
[ECO "B33"]
[WhiteElo "2056"]
[BlackElo "2237"]
[Annotator "TA"]
[PlyCount "45"]
[EventDate "2022.07.24"]
[EventType "tourn"]
[EventCountry "USA"]
[SourceTitle "playchess.com"]
[Source "ChessBase"]
[SourceQuality "1"]
[TimeControl "5400+30"]

{[%evp 20,45,18,18,9,6,16,4,3,8,20,0,20,20,0,0,0,0,0,0,14,0,0,0,0,0,0,0]} 1. e4 {[%emt 0:00:47]} c5 {[%emt 0:00:21]} 2. Nf3 {[%emt 0:00:20][%cal Bg1f3,Bf3d4,Bd4b5,Bb5a3,Ba3c2][%mdl 32]} Nc6 {[%emt 1:31:09]} 3. d4 {[%emt 0:00:10]} cxd4 {[%emt 0:00:00]} 4. Nxd4 {[%emt 0:00:10]} Nf6 {[%emt 0:00:00]} 5. Nc3 {[%emt 0:00:22]} e5 {[%emt 0:00:00]} 6. Ndb5 {[%emt 0:00:29]} d6 {[%emt 0:00:00]} 7. Bg5 {[%emt 0:00:20]} a6 {[%emt 0:00:00]} 8. Na3 {[%emt 0:00:17]} b5 {[%emt 0:00:00]} 9. Nd5 {[%emt 0:00:10]} Be7 {[%emt 0:00:00]} 10. Bxf6 {[%emt 0:00:15]} Bxf6 {[%emt 0:00:00]} 11. c4 {[%emt 0:00:12] The position is equal.} b4 {[%emt 0:00:00] B33: Sicilian: Pelikan and Sveshnikov Variations.} 12. Nc2 {[%emt 0:00:14]} O-O {[%emt 0:00:00]} 13. g3 {[%emt 0:00:11]} a5 {[%emt 0:00:00]} 14. Bg2 {[%emt 0:00:21]} Be6 {[%emt 0:00:00] 14...g6 is the modern continuation.} 15. b3 {[%emt 0:02:13]} Rc8 {[%emt 0:00:00]} 16. O-O {[%emt 0:00:55]} Bxd5 {[%emt 0:00:00]} 17. Qxd5 {[%emt 0:01:33]} Nd4 {[%emt 0:00:00]} 18. Nxd4 {[%emt 0:00:10]} exd4 {[%emt 0:00:00]} 19. Qh5 {[%emt 0:00:58]} g6 {[%emt 0:00:00]} 20. Qd1 {[%emt 0:02:28]} Qb6 {[%emt 0:00:00]} 21. Qd3 {[%emt 0:00:37]} Rc5 {[%emt 0:00:00] [#]} 22. Rae1 $146 {[%emt 0:01:32]} ({Predecessor:} 22. f4 Re8 23. Rae1 Qa7 24. Kh1 Qd7 25. h4 h6 26. Kh2 Kg7 27. Rf2 Re7 28. Ref1 {½-½ (43) Vojta,J (2256)-Poltorak,S (2048) Bratislava 2019}) 22... a4 {[%emt 0:00:00]} 23. f4 {[%emt 0:00:55] Not much happened in this game.  Weighted Error Value: White=0.04 (flawless) /Black=0.04 (flawless)} 1/2-1/2

[Event "Charlotte Summer IM B 2022"]
[Site "Charlotte"]
[Date "2022.07.27"]
[Round "5.4"]
[White "Ringoir, Tanguy"]
[Black "Eckert, Doug"]
[Result "1-0"]
[ECO "D38"]
[WhiteElo "2490"]
[BlackElo "2177"]
[Annotator "TA"]
[PlyCount "75"]
[EventDate "2022.07.24"]
[EventType "tourn"]
[EventCountry "USA"]
[SourceTitle "playchess.com"]
[Source "ChessBase"]
[SourceQuality "1"]
[TimeControl "5400+30"]

{[%evp 12,75,18,18,16,23,32,18,25,13,18,20,35,20,17,18,19,22,33,33,24,0,43,45,41,44,41,42,47,39,44,35,34,27,45,34,70,43,52,55,52,52,52,41,66,62,72,56,56,56,77,68,353,350,344,289,445,444,490,479,513,501,505,506,634,589]} 1. d4 {[%emt 0:03:02]} Nf6 {[%emt 0:00:07]} 2. c4 {[%emt 0:00:06]} e6 {[%emt 0:00:04]} 3. Nf3 {[%emt 0:00:04]} d5 {[%emt 0:00:09]} 4. Nc3 {[%emt 0:00:07]} Bb4 {[%emt 0:00:32]} 5. cxd5 {[%emt 0:00:18]} exd5 {[%emt 0:00:29]} 6. Bg5 {[%emt 0:00:10]} h6 {[%emt 0:02:59]} 7. Bh4 {[%emt 0:00:07]} O-O {[%emt 0:01:04] 7...Bf5 is the recent fashion. D38: Queen's Gambit Declined: Ragozin Defence (4 Nf3 Bb4).} 8. e3 {[%emt 0:00:50]} Bf5 {[%emt 0:02:46]} 9. Be2 {[%emt 0:00:19]} Nbd7 {[%emt 0:03:39] The position is equal.} 10. Qb3 {[%emt 0:00:21]} Qe7 {[%emt 0:02:59]} 11. a3 {[%emt 0:00:18][%cal Ba2a3,Ba3a4][%mdl 32]} Bxc3+ {[%emt 0:01:20]} 12. Qxc3 {[%emt 0:00:08]} c6 {[%emt 0:02:16]} 13. Nd2 {[%emt 0:00:07]} Rfe8 {[%emt 0:03:24]} 14. O-O {[%emt 0:00:21] [#]} Nb6 $146 {[%emt 0:16:13]} ({Predecessor:} 14... Ne4 15. Nxe4 Qxe4 16. Bg3 Qc2 17. Qxc2 Bxc2 18. Rfc1 Bf5 19. Rc3 Nf6 20. f3 Re7 {1-0 (64) Anderton,D (2087)-Crombleholme,A (2009) Llandudno 2017}) 15. a4 {[%emt 0:00:22]} Nc8 {[%emt 0:03:24]} 16. Ra3 {[%emt 0:09:51]} Ne4 {[%emt 0:57:05]} 17. Bxe7 {[%emt 0:00:25]} Nxc3 {[%emt 0:00:00]} 18. bxc3 {[%emt 0:00:19] [#] aiming for Bh4.} Rxe7 {[%emt 0:00:00]} 19. c4 {[%emt 0:02:33]} dxc4 {[%emt 0:00:00]} 20. Nxc4 {[%emt 0:01:28][%cal Bd2c4,Bc4e5,Be5g6,Bg6f4,Bf4e2,Be2d4,Bd4e6][%mdl 32]} Be6 {[%emt 0:00:00]} 21. Ne5 {[%emt 0:06:09]} Nd6 {[%emt 0:00:00]} 22. Rc1 {[%emt 0:01:47][%cal Bf1c1,Bc1c5,Bc5d5,Bd5d6][%mdl 32]} f6 {[%emt 0:00:00]} 23. Ng6 {[%emt 0:01:31]} Rd7 {[%emt 0:00:00]} 24. f3 {[%emt 0:07:42] White is more active.} Kh7 {[%emt 0:00:00]} 25. Nf4 {[%emt 0:01:49]} Bf7 {[%emt 0:00:00]} 26. Bd3+ {[%emt 0:02:06]} f5 {[%emt 0:00:00]} 27. Rc5 {[%emt 0:04:08] Hoping for Rxf5.} g5 {[%emt 0:00:00]} 28. Ne2 {[%emt 0:00:05]} Bg6 {[%emt 0:00:00]} 29. d5 {[%emt 0:02:22]} cxd5 $1 {[%emt 0:00:25]} 30. Rxd5 {[%emt 0:00:02]} Rad8 {[%emt 0:01:22]} 31. Nd4 {[%emt 0:01:13] Threatens to win with Ne6.} f4 $2 {[%emt 0:04:44][%mdl 8192] [#] Loses the game.} (31... Kg8 $14) 32. Ne6 $1 $18 {[%emt 0:03:06][%csl LRd8,LRf4]} Rc8 {[%emt 0:00:51]} 33. Bb5 {[%emt 0:11:43]} Re7 {[%emt 0:00:31]} (33... Rc1+ {might work better.} 34. Kf2 Rc2+ 35. Ke1 Rc1+ 36. Kd2 Rc2+ 37. Kd1 Kg8) 34. Rxd6 {[%emt 0:00:09] White is clearly winning.} a6 {[%emt 0:00:21]} 35. Be2 {[%emt 0:06:41]} Rce8 {[%emt 0:00:21]} 36. Nd4 {[%emt 0:00:46]} fxe3 {[%emt 0:00:11]} 37. Rc3 {[%emt 0:00:02]} b5 {[%emt 0:00:37]} 38. Rcc6 {[%emt 0:00:55] Weighted Error Value: White=0.06 (flawless) /Black=0.34} 1-0

[Event "Charlotte Summer IM B 2022"]
[Site "Charlotte"]
[Date "2022.07.27"]
[Round "5.5"]
[White "Avila Rodriguez, Joshua Ad"]
[Black "Wang, Tianqi"]
[Result "0-1"]
[ECO "B07"]
[WhiteElo "2210"]
[BlackElo "2402"]
[Annotator "TA"]
[PlyCount "152"]
[EventDate "2022.07.24"]
[EventType "tourn"]
[EventCountry "USA"]
[SourceTitle "playchess.com"]
[Source "ChessBase"]
[SourceQuality "1"]
[TimeControl "5400+30"]

{[%evp 20,152,37,42,33,34,38,22,73,58,94,96,111,91,112,40,45,40,75,60,74,0,0,0,0,-35,-40,-99,-89,-537,-597,-550,-548,-1230,-1207,-1160,-1015,-1112,-1002,-1047,-964,-858,-190,-160,-151,-252,-225,-207,-215,-185,-127,-121,-108,-106,-108,-108,-104,-105,-108,-108,-81,-85,-33,-33,-33,-33,-33,-34,-34,-34,-52,-60,-59,-59,-18,-27,-27,-27,-27,-27,-27,-27,-19,-19,-19,-20,-20,-20,-8,-8,-8,-74,-313,-719,-679,-551,-526,-4622,-1695,-29957,-29954,-29962,-8,-8,-91,-139,-139,-29969,-29970,-29970,-29971,-29974,-29974,-29975,-29976,-29976,-29976,-29976,-29977,-29977,-29978,-29978,-29979,-29979,-29980,-29981,-29982,-29984,-29985,-29985,-29986,-29986,-29982,-29989,-29990]} 1. e4 {[%emt 0:00:19]} d6 {[%emt 0:02:28]} 2. d4 {[%emt 0:00:58]} Nf6 {[%emt 0:00:05]} 3. Nc3 {[%emt 0:00:10]} e5 {[%emt 0:00:05]} 4. Nf3 {[%emt 0:01:20]} exd4 {[%emt 0:00:14]} 5. Nxd4 {[%emt 0:00:06]} Be7 {[%emt 0:00:02]} 6. g3 {[%emt 0:00:34]} O-O {[%emt 0:00:07]} 7. Bg2 {[%emt 0:00:08]} Re8 {[%emt 0:00:04]} 8. O-O {[%emt 0:00:07]} Bf8 {[%emt 0:00:11]} 9. h3 {[%emt 0:04:17]} Nbd7 {[%emt 0:02:56]} 10. Re1 {[%emt 0:00:11]} c6 {[%emt 0:00:28]} 11. a4 {[%emt 0:00:29]} a5 {[%emt 0:00:09] B07: Pirc Defence: Miscellaneous Systems.} 12. b3 {[%emt 0:05:16]} Nc5 {[%emt 0:00:38]} 13. Bb2 {[%emt 0:00:19] [#]} d5 $146 {[%emt 0:01:35]} (13... Qb6 $11) ({Predecessor:} 13... Qb6 14. Qd2 h6 15. Rad1 Bd7 16. g4 Nh7 17. Kh1 Rad8 18. Nde2 Bc8 19. Ng3 Na6 {1-0 (57) Gabrielian,A (2480)-Kazhgaleyev,M (2554) Cheliabinsk 2022}) 14. exd5 $16 {[%emt 0:04:59]} Rxe1+ {[%emt 0:19:05]} 15. Qxe1 {[%emt 0:00:16]} cxd5 {[%emt 0:00:05]} 16. Rd1 {[%emt 0:03:12]} Qb6 {[%emt 0:00:42]} 17. Kh2 {[%emt 0:13:41]} (17. Qe5 $16) 17... Bd7 $1 $14 {[%emt 0:00:26]} 18. Bc1 {[%emt 0:09:25]} Re8 {[%emt 0:01:54]} 19. Be3 {[%emt 0:00:16]} Nce4 {[%emt 0:02:56]} 20. Ncb5 {[%emt 0:15:53]} (20. Nxe4 $16 dxe4 21. Nb5) 20... Bc5 {[%emt 0:02:11][%cal Oe4g3]} 21. Qe2 {[%emt 0:12:54]} h5 {[%emt 0:01:31][%cal Bh7h5,Bh5h4,Bh4h3][%mdl 32]} 22. Qd3 {[%emt 0:01:21]} (22. Bxe4 $5 Rxe4 23. Kg2 $11) 22... h4 {[%emt 0:04:30]} 23. g4 {[%emt 0:00:49]} (23. gxh4 $15 Bxb5 24. axb5) 23... Bxg4 $1 $17 {[%emt 0:05:01]} 24. hxg4 {[%emt 0:03:13][%mdl 8192]} (24. f3 $17 Bh5 25. fxe4 dxe4 26. Qd2) 24... Nxg4+ $19 {[%emt 0:00:43]} 25. Kg1 {[%emt 0:00:05]} Qg6 $1 {[%emt 0:00:05][%cal Oh4h3]} 26. f3 {[%emt 0:18:46]} Nxe3 {[%emt 0:55:19][%mdl 64] Discovered Attack} 27. Qxe3 {[%emt 0:00:07]} h3 {[%emt 0:00:00][%csl Gh3][%cal Rg6g2][%mdl 64] Pin} 28. Rd2 {[%emt 0:02:51]} Nd6 {[%emt 0:00:00]} 29. Qf2 {[%emt 0:00:45]} Nxb5 {[%emt 0:00:00]} ({Stronger than} 29... Qxg2+ 30. Qxg2 hxg2 31. Kxg2 $17) 30. axb5 {[%emt 0:00:15]} Bxd4 $2 {[%emt 0:00:00]} ({Not} 30... Qxg2+ 31. Qxg2 hxg2 32. Kxg2 $17) (30... hxg2 31. b6 Re5) 31. Rxd4 {[%emt 0:02:21]} hxg2 {[%emt 0:00:00][%mdl 4096] Endgame KQR-KQR. Black is more active.} 32. Rg4 {[%emt 0:00:05]} (32. Rxd5 $17 f6 33. Rd3) 32... Qf5 {[%emt 0:00:00]} 33. Kxg2 {[%emt 0:00:11]} Re6 {[%emt 0:00:00]} 34. Qd2 {[%emt 0:00:32]} Rf6 {[%emt 0:00:00]} (34... Qe5 $19 {Threatens to win with ...f5.} 35. Rh4 Qe2+ 36. Qxe2 Rxe2+ 37. Kg3 Rxc2) 35. Qc3 $17 {[%emt 0:00:59]} b6 {[%emt 0:00:00]} 36. Kg3 {[%emt 0:00:38]} d4 {[%emt 0:00:00]} 37. Rxd4 {[%emt 0:00:04]} Qe5+ {[%emt 0:00:00]} 38. Kg2 {[%emt 0:00:28] White threatens Rd8+ and mate.} Rg6+ {[%emt 0:00:00]} 39. Kf1 {[%emt 0:00:10] Intending Rd8+ and mate.} Qxb5+ {[%emt 0:00:00]} 40. Qd3 {[%emt 0:00:04]} Qg5 {[%emt 0:00:00]} (40... Qxd3+ $17 41. Rxd3 Kf8) 41. Rd8+ $15 {[%emt 0:00:08]} Kh7 {[%emt 0:00:00]} 42. Rd5 {[%emt 0:00:45] Prevents f5.} Qc1+ {[%emt 0:00:00]} 43. Ke2 {[%emt 0:00:04] Hoping for Rh5+.} Kh6 {[%emt 0:00:00][%cal Rg6g2] Prevents Rh5+.} 44. Qe3+ {[%emt 0:00:40]} Qxe3+ {[%emt 0:00:00]} 45. Kxe3 {[%emt 0:00:03] KR-KR} Rc6 {[%emt 0:00:00]} 46. c4 {[%emt 0:00:30]} g5 {[%emt 0:00:00]} 47. Rb5 {[%emt 0:00:38]} Kh5 {[%emt 0:00:00]} 48. Kf2 {[%emt 0:01:54]} Kh4 {[%emt 0:00:00]} 49. Rf5 {[%emt 0:00:19]} f6 {[%emt 0:00:00]} 50. Rd5 {[%emt 0:00:16]} g4 {[%emt 0:00:00]} 51. fxg4 {[%emt 0:01:01]} Kxg4 {[%emt 0:12:30] White must now prevent ...f5.} 52. Rd4+ {[%emt 0:00:04]} Kg5 {[%emt 0:00:00]} 53. Kf3 $1 {[%emt 0:00:21]} f5 {[%emt 0:00:00] next ...Rh6 is good for Black.} 54. Rd5 $1 {[%emt 0:00:32]} Rc5 {[%emt 0:00:00]} 55. Rd6 {[%emt 0:00:45]} (55. Rd8 $11) 55... b5 $17 {[%emt 0:00:00]} 56. cxb5 {[%emt 0:00:49] [#]} (56. Ra6 a4 57. bxa4 bxc4 58. Rb6) 56... Rc3+ $1 $19 {[%emt 0:00:00]} 57. Kf2 {[%emt 0:00:06][%cal Ob3b4]} Rxb3 {[%emt 0:00:00]} 58. b6 {[%emt 0:00:08] [#]} Kg4 $1 {[%emt 0:03:30] ...a4 is the strong threat.} 59. Rd5 {[%emt 0:01:10]} Rb2+ {[%emt 0:00:00]} 60. Kf1 {[%emt 0:01:08]} f4 $2 {[%emt 0:00:00]} (60... a4 {mates} 61. Ra5 f4 62. Rxa4 Kg3 63. Ra8 Rb1+ 64. Ke2 f3+ 65. Kd3 Rxb6 66. Rg8+ Kf2 67. Rf8 Kg2 68. Rg8+ Kf1 69. Rg7 Rb2 70. Rg3 f2 71. Rg7 Re2 72. Rf7 Ke1 73. Kc3 Re6 74. Rb7 f1=Q 75. Rb1+ Kf2 76. Rxf1+ Kxf1 77. Kd4 Ke2 78. Kd5 Re8 79. Kc4 Ke3 80. Kd5 Kd3 81. Kc5 Re5+ 82. Kd6 Kd4 83. Kc6 Rd5 84. Kb6 Rc5 85. Kb7 Kc4 86. Kb6 Kb4 87. Ka7 Ka5 88. Kb7 Kb5 89. Ka7 Kc6 90. Kb8 Kb6 91. Ka8 Rc8#) 61. Rxa5 $11 {[%emt 0:00:21]} Kg3 {[%emt 0:01:30] ( -> ...Rb1+)} 62. Rg5+ {[%emt 0:00:42] Black keeps a firm grip on the game.} Kf3 {[%emt 0:00:00][%cal Rb2b1]} 63. Ke1 $2 {[%emt 0:00:31][%mdl 8192]} (63. Kg1 $17) 63... Rb1+ {[%emt 0:00:00] Black mates.} 64. Kd2 {[%emt 0:00:07]} Rxb6 {[%emt 0:00:00]} 65. Rd5 {[%emt 0:00:47]} Re6 {[%emt 0:00:00]} 66. Rd7 {[%emt 0:00:28]} Kf2 {[%emt 0:00:00]} 67. Rf7 {[%emt 0:00:30]} Rd6+ {[%emt 0:00:00]} 68. Kc2 {[%emt 0:00:06]} f3 {[%emt 0:00:00][%cal Bf4f3,Bf3f2][%mdl 32]} 69. Rf8 {[%emt 0:00:21]} Ke2 {[%emt 0:00:00]} 70. Re8+ {[%emt 0:00:07]} Kf1 {[%emt 0:00:00]} 71. Rf8 {[%emt 0:00:10]} f2 {[%emt 0:00:00]} 72. Rg8 {[%emt 0:00:07]} Rd5 {[%emt 0:00:00]} 73. Rg7 {[%emt 0:00:08]} Ke2 {[%emt 0:00:00]} 74. Re7+ {[%emt 0:00:05]} Kf3 {[%emt 0:00:00]} 75. Rf7+ {[%emt 0:00:13]} Kg3 {[%emt 0:00:00]} 76. Kc1 {[%emt 0:00:12]} Rd4 {[%emt 0:00:00] Weighted Error Value: White=0.64/Black=0.31} 0-1